bitfinex/quotes_SOLUSD_20250413
["timestamp","ask_amount","ask_price","bid_price","bid_amount"]
[1744567258867,19.233972,131.56,131.55,0.03]
[1744567259067,10.6394241,131.56,131.55,0.03]
[1744567259379,29.71555767,131.56,131.55,0.03]
[1744567260376,37.31655767,131.56,131.55,0.03]
[1744567260575,37.31655767,131.56,131.55,0.0001]
[1744567261181,26.0,131.53,131.52,0.03]
[1744567261365,55.71555767,131.53,131.52,0.0001]
[1744567261570,45.37613357,131.49,131.48,0.03]
[1744567261770,0.3,131.49,131.48,0.03]
[1744567261975,0.3,131.49,131.48,10.3694241]
[1744567262183,0.3,131.5,131.48,10.3694241]
[1744567262382,0.3,131.49,131.48,0.03]
[1744567262581,0.3,131.49,131.48,10.3694241]
[1744567262773,0.3,131.51,131.48,0.03]
[1744567262974,0.3,131.5,131.48,0.03]
[1744567263181,0.3,131.5,131.49,10.3394241]
[1744567263487,0.3,131.5,131.48,0.03]
[1744567263894,0.3,131.49,131.48,0.03]
[1744567264261,18.2445241,131.49,131.48,0.03]
[1744567264491,37.32065767,131.49,131.48,0.03]
[1744567264684,43.64075767,131.49,131.48,0.03]
[1744567264877,7.9051,131.49,131.48,0.03]
[1744567265066,18.2445241,131.49,131.48,0.03]
[1744567266480,18.67100881,131.49,131.48,0.03]
[1744567267069,0.44216157,131.45,131.44,0.03]
[1744567267390,0.3,131.45,131.44,0.03]
[1744567268386,24.11488798,131.45,131.44,0.03]
[1744567269187,0.3,131.45,131.44,0.03]
[1744567270386,7.9074,131.45,131.44,0.03]
[1744567270691,24.11488798,131.45,131.44,0.03]
[1744567271065,33.9074,131.45,131.44,0.03]
[1744567271479,7.9074,131.45,131.44,0.03]
[1744567271690,0.3,131.45,131.44,0.03]
[1744567272500,82.9,131.48,131.44,16.23748798]
[1744567272501,0.3,131.48,131.44,16.23748798]
[1744567272677,0.3,131.48,131.47,16.20748798]
[1744567272981,0.3,131.52,131.47,16.20748798]
[1744567273183,0.3,131.52,131.46,1.6235]
[1744567273388,0.3,131.53,131.46,1.6235]
[1744567273591,0.3,131.51,131.5,16.20748798]
[1744567273768,0.3,131.5,131.49,16.20748798]
[1744567273968,0.3,131.5,131.46,1.6235]
[1744567274192,0.3,131.47,131.44,9.97]
[1744567274390,0.3,131.47,131.44,0.03]
[1744567274704,0.3,131.45,131.44,8.41]
[1744567274992,0.3,131.47,131.44,32.22538798]
[1744567275203,0.3,131.48,131.46,16.20748798]
[1744567275415,0.3,131.48,131.47,16.20748798]
[1744567275573,0.3,131.48,131.47,24.58748798]
[1744567275780,0.3,131.48,131.47,8.38]
[1744567275985,0.3,131.48,131.47,24.58748798]
[1744567276181,0.3,131.51,131.47,24.58748798]
[1744567276381,0.3,131.5,131.47,15.9858]
[1744567276597,0.3,131.49,131.47,8.38]
[1744567276795,0.3,131.49,131.48,16.20748798]
[1744567277000,0.3,131.49,131.48,8.38]
[1744567278013,0.3,131.49,131.48,24.58748798]
[1744567278217,0.3,131.49,131.48,8.38]
[1744567278794,0.3,131.49,131.48,24.58748798]
[1744567279106,0.3,131.49,131.48,8.38]
[1744567279596,0.3,131.49,131.48,24.58748798]
[1744567279778,0.3,131.5,131.48,24.58748798]
[1744567279973,7.9041,131.51,131.48,8.38]
[1744567280179,16.50748798,131.49,131.48,8.38]
[1744567280480,0.3,131.49,131.45,23.81468798]
[1744567280681,0.3,131.48,131.46,16.20748798]
[1744567281274,0.3,131.48,131.45,7.6072]
[1744567281479,0.3,131.47,131.46,16.20748798]
[1744567281703,0.3,131.48,131.46,16.20748798]
[1744567281882,7.6048,131.5,131.45,16.20748798]
[1744567281883,0.3,131.47,131.45,16.20748798]
[1744567282498,0.3,131.48,131.45,16.20748798]
[1744567282802,0.3,131.47,131.45,16.20748798]
[1744567283298,0.3,131.5,131.46,16.20748798]
[1744567283496,0.3,131.5,131.45,26.25704886]
[1744567283807,0.3,131.5,131.48,16.20748798]
[1744567284006,0.3,131.5,131.49,16.20748798]
[1744567284191,0.3,131.51,131.49,16.20748798]
[1744567285001,0.3,131.52,131.5,16.20748798]
[1744567285186,0.3,131.52,131.51,16.20748798]
[1744567285392,0.3,131.52,131.5,16.20748798]
[1744567286108,0.3,131.47,131.44,0.03]
[1744567286304,0.3,131.47,131.45,16.20748798]
[1744567286683,0.3,131.46,131.44,0.03]
[1744567286888,0.3,131.45,131.44,0.03]
[1744567287714,0.3,131.45,131.44,0.42]
[1744567294801,0.3,131.46,131.44,0.42]
[1744567295506,0.3,131.45,131.44,0.42]
[1744567299412,7.9074,131.45,131.44,0.42]
[1744567300390,24.11488798,131.45,131.44,0.42]
[1744567306025,25.92234955,131.45,131.44,0.42]
[1744567307019,25.78018798,131.45,131.44,0.42]
[1744567307316,0.3,131.45,131.44,0.42]
[1744567307540,50.25704955,131.45,131.44,0.42]
[1744567307829,0.3,131.44,131.43,0.01]
[1744567308126,8.05016157,131.44,131.43,0.01]
[1744567308335,24.25764955,131.44,131.42,0.03]
[1744567308515,16.20748798,131.43,131.42,0.03]
[1744567309196,24.11608798,131.43,131.42,0.03]
[1744567309629,16.50748798,131.43,131.42,0.03]
[1744567310033,0.3,131.43,131.42,0.03]
[1744567311333,7.9086,131.43,131.42,0.03]
[1744567312938,24.11608798,131.43,131.42,0.03]
[1744567314625,24.25824955,131.43,131.42,0.03]
[1744567314812,43.19222155,131.43,131.42,0.0001]
[1744567315012,53.11222155,131.43,131.42,0.0001]
[1744567315328,19.37613357,131.42,131.41,0.0001]
[1744567315512,0.3,131.34,131.31,23.82278798]
[1744567315712,26.0,131.38,131.33,16.20748798]
[1744567315713,0.3,131.36,131.33,16.20748798]
[1744567316109,0.3,131.34,131.32,16.40748798]
[1744567316326,0.3,131.33,131.32,0.2]
[1744567316527,16.50748798,131.33,131.32,0.2]
[1744567317031,0.3,131.33,131.32,0.2]
[1744567317414,7.9144,131.33,131.32,0.2]
[1744567317627,0.3,131.33,131.32,0.2]
[1744567318334,24.26404955,131.33,131.32,0.2]
[1744567318640,24.12188798,131.33,131.32,0.2]
[1744567319151,0.3,131.33,131.32,0.2]
[1744567319341,7.9144,131.33,131.32,0.2]
[1744567319823,0.3,131.33,131.32,0.2]
[1744567320415,0.3,131.34,131.32,0.2]
[1744567320741,0.3,131.36,131.33,16.20748798]
[1744567321031,0.3,131.38,131.35,16.20748798]
[1744567321225,35.23028798,131.43,131.37,16.20748798]
[1744567321226,0.3,131.39,131.37,16.20748798]
[1744567321430,0.3,131.39,131.38,16.20748798]
[1744567321819,0.3,131.39,131.38,16.40748798]
[1744567322220,0.3,131.39,131.38,0.2]
[1744567322816,7.9109,131.39,131.38,0.2]
[1744567323018,0.3,131.39,131.38,0.2]
[1744567324226,7.9109,131.39,131.38,0.2]
[1744567324546,0.3,131.39,131.38,0.2]
[1744567326225,0.3,131.4,131.38,0.2]
[1744567326426,0.3,131.39,131.38,0.2]
[1744567328144,7.9109,131.39,131.38,0.2]
[1744567330844,49.72932155,131.39,131.38,0.2]
[1744567331027,0.3,131.33,131.32,0.03]
[1744567331233,16.50748798,131.33,131.32,0.03]
[1744567331428,0.3,131.33,131.32,0.03]
[1744567332252,43.19802155,131.33,131.32,0.22]
[1744567332626,24.26404955,131.33,131.32,0.22]
[1744567333332,19.37613357,131.31,131.3,0.03]
[1744567333527,35.58362155,131.31,131.3,0.03]
[1744567334349,43.19912155,131.31,131.3,0.03]
[1744567335466,24.26514955,131.31,131.3,0.03]
[1744567335763,0.3,131.31,131.3,0.03]
[1744567336955,0.3,131.31,131.3,16.23748798]
[1744567337247,0.3,131.31,131.3,0.03]
[1744567338836,7.9155,131.31,131.3,0.03]
[1744567339549,8.05766157,131.31,131.3,0.03]
[1744567339753,44.85002155,131.31,131.3,0.03]
[1744567340132,51.24752155,131.31,131.3,0.03]
[1744567341356,61.03993565,131.31,131.3,0.03]
[1744567342232,42.10596365,131.31,131.3,0.03]
[1744567346055,33.91540208,131.31,131.3,0.03]
[1744567347055,7.9155,131.31,131.3,0.03]
[1744567347256,34.05756365,131.31,131.3,0.03]
[1744567347431,7.9155,131.31,131.3,0.03]
[1744567347835,0.3,131.31,131.3,0.03]
[1744567348541,0.3,131.32,131.3,26.02990208]
[1744567348750,0.3,131.35,131.31,33.61540208]
[1744567348940,0.3,131.35,131.34,25.99990208]
[1744567349945,0.3,131.37,131.34,25.99990208]
[1744567350147,0.3,131.37,131.36,25.99990208]
[1744567350557,0.3,131.38,131.36,25.99990208]
[1744567350742,0.3,131.39,131.37,25.99990208]
[1744567350940,0.3,131.42,131.38,25.99990208]
[1744567351139,0.3,131.41,131.37,7.6118]
[1744567351335,0.3,131.41,131.4,25.99990208]
[1744567351735,0.3,131.42,131.4,25.99990208]
[1744567351939,0.3,131.42,131.41,25.99990208]
[1744567353240,0.3,131.41,131.4,25.99990208]
[1744567354958,0.3,131.44,131.4,33.61010208]
[1744567355164,0.363,131.46,131.43,25.99990208]
[1744567355359,0.063,131.46,131.45,25.99990208]
[1744567355547,0.363,131.46,131.45,25.99990208]
[1744567355948,0.063,131.46,131.45,25.99990208]
[1744567356152,0.363,131.46,131.45,25.99990208]
[1744567356669,0.063,131.46,131.45,25.99990208]
[1744567357038,0.063,131.46,131.45,33.60730208]
[1744567357245,0.063,131.46,131.45,52.25695094]
[1744567357469,0.063,131.46,131.45,52.54127408]
[1744567359746,0.063,131.47,131.46,18.933972]
[1744567359944,0.063,131.47,131.46,25.99990208]
[1744567360461,0.063,131.47,131.46,26.20990208]
[1744567360965,0.063,131.48,131.47,19.07613357]
[1744567361266,0.063,131.48,131.47,44.93387408]
[1744567361461,0.063,131.51,131.48,0.14216157]
[1744567361642,0.063,131.51,131.5,52.25405094]
[1744567362159,0.063,131.51,131.49,9.9]
[1744567362350,0.063,131.51,131.5,25.99990208]
[1744567363164,0.063,131.51,131.5,44.64955094]
[1744567363756,0.063,131.51,131.5,25.99990208]
[1744567365365,0.063,131.54,131.5,78.68043773]
[1744567365562,0.063,131.54,131.53,25.99990208]
[1744567366354,0.063,131.54,131.53,33.60270208]
[1744567367456,0.063,131.54,131.53,25.99990208]
[1744567367855,0.063,131.54,131.53,33.60270208]
[1744567368552,0.063,131.54,131.53,52.53667408]
[1744567368751,0.063,131.54,131.53,52.67883565]
[1744567369478,0.063,131.54,131.53,56.26883565]
[1744567370363,0.063,131.57,131.55,0.14216157]
[1744567370682,0.063,131.57,131.56,26.28422522]
[1744567370858,0.063,131.57,131.56,25.99990208]
[1744567371059,0.063,131.57,131.55,35.87990208]
[1744567371585,0.3,131.56,131.53,3.59]
[1744567371781,0.3,131.56,131.54,25.99990208]
[1744567372463,0.3,131.55,131.53,3.59]
[1744567372976,0.3,131.55,131.53,29.58990208]
[1744567373165,0.3,131.55,131.54,25.99990208]
[1744567373363,0.3,131.55,131.53,3.59]
[1744567373868,0.3,131.54,131.53,3.59]
[1744567376080,7.9022,131.54,131.53,3.59]
[1744567376470,7.9022,131.54,131.5,9.88]
[1744567376471,0.3,131.52,131.5,9.88]
[1744567376772,0.3,131.52,131.5,25.99990208]
[1744567378374,7.9029,131.53,131.5,25.99990208]
[1744567378574,0.3,131.52,131.5,25.99990208]
[1744567379381,0.3,131.51,131.5,25.99990208]
[1744567379564,0.3,131.52,131.5,25.99990208]
[1744567380083,0.3,131.52,131.51,25.99990208]
[1744567381173,0.3,131.56,131.52,18.64964886]
[1744567381373,0.063,131.57,131.55,25.99990208]
[1744567381578,0.363,131.57,131.56,25.99990208]
[1744567381977,0.063,131.57,131.56,33.60090208]
[1744567382284,0.363,131.57,131.56,33.60090208]
[1744567382866,0.063,131.57,131.56,33.60090208]
[1744567383784,0.363,131.57,131.56,33.60090208]
[1744567383961,0.063,131.57,131.56,33.60090208]
[1744567384587,0.363,131.57,131.56,33.60090208]
[1744567384767,0.363,131.57,131.55,7.6015]
[1744567384965,0.063,131.57,131.56,25.99990208]
[1744567385166,0.363,131.57,131.55,7.6015]
[1744567385461,0.063,131.57,131.56,25.99990208]
[1744567386087,0.363,131.57,131.56,25.99990208]
[1744567386265,0.063,131.57,131.56,25.99990208]
[1744567386465,0.363,131.57,131.56,25.99990208]
[1744567386688,7.6635,131.57,131.51,9.86]
[1744567386994,0.3,131.56,131.54,25.99990208]
[1744567387199,0.063,131.57,131.53,3.63]
[1744567387501,0.3,131.56,131.53,29.62990208]
[1744567387795,7.9635,131.57,131.53,29.62990208]
[1744567388000,0.3,131.56,131.53,29.62990208]
[1744567388169,7.6635,131.57,131.54,25.99990208]
[1744567388170,7.9635,131.57,131.54,25.99990208]
[1744567388369,0.3,131.56,131.54,25.99990208]
[1744567388571,0.363,131.57,131.55,25.99990208]
[1744567388770,0.063,131.57,131.56,25.99990208]
[1744567389295,0.363,131.57,131.56,25.99990208]
[1744567389589,0.063,131.57,131.56,25.99990208]
[1744567391271,0.063,131.57,131.54,25.99990208]
[1744567391272,0.363,131.57,131.54,25.99990208]
[1744567391587,0.3,131.54,131.51,9.86]
[1744567391772,0.3,131.54,131.53,0.53]
[1744567392088,0.3,131.54,131.52,25.99990208]
[1744567392588,0.3,131.55,131.52,25.99990208]
[1744567392785,0.3,131.54,131.52,25.99990208]
[1744567393291,0.3,131.53,131.52,25.99990208]
[1744567393485,0.3,131.53,131.52,0.53]
[1744567394582,0.3,131.54,131.52,26.52990208]
[1744567394789,0.363,131.57,131.53,25.99990208]
[1744567394985,0.363,131.57,131.56,25.99990208]
[1744567395184,0.363,131.57,131.56,16.16841212]
[1744567395777,0.363,131.57,131.55,16.16841212]
[1744567395979,0.3,131.56,131.55,16.16841212]
[1744567396493,0.363,131.57,131.55,16.16841212]
[1744567396791,0.063,131.57,131.56,16.16841212]
[1744567398388,0.063,131.57,131.56,23.76941212]
[1744567398975,0.063,131.57,131.56,25.66885153]
[1744567399176,0.063,131.57,131.56,35.35892086]
[1744567399792,0.063,131.57,131.56,9.50043941]
[1744567400094,0.063,131.57,131.56,35.35892086]
[1744567403477,0.063,131.58,131.57,18.64964886]
[1744567403706,0.063,131.6,131.59,18.933972]
[1744567403899,0.063,131.6,131.59,25.85848145]
[1744567405073,0.063,131.6,131.59,27.75792086]
[1744567405478,0.063,131.6,131.59,35.35722086]
[1744567407386,0.063,131.62,131.6,18.933972]
[1744567407707,0.063,131.62,131.61,35.35612086]
[1744567409510,0.063,131.62,131.61,54.29009286]
[1744567409823,0.063,131.66,131.61,54.35162086]
[1744567409982,0.363,131.66,131.65,25.85848145]
[1744567411294,0.363,131.66,131.61,26.532172]
[1744567411604,0.3,131.64,131.62,25.85848145]
[1744567413002,0.3,131.64,131.63,25.85848145]
[1744567413389,0.3,131.65,131.63,26.38848145]
[1744567413583,0.3,131.65,131.64,25.85848145]
[1744567414406,0.363,131.66,131.64,33.45488145]
[1744567414605,0.3,131.65,131.63,25.85848145]
[1744567418112,0.3,131.65,131.63,33.45548145]
[1744567418313,0.3,131.65,131.63,25.85848145]
[1744567418812,0.363,131.66,131.63,25.85848145]
[1744567419112,0.3,131.65,131.63,25.85848145]
[1744567419315,0.3,131.65,131.63,16.14947481]
[1744567419610,0.363,131.66,131.64,16.14947481]
[1744567420016,0.3,131.65,131.63,16.14947481]
[1744567420513,0.3,131.65,131.61,7.5979]
[1744567420718,0.3,131.65,131.62,16.67947481]
[1744567421297,0.3,131.65,131.62,24.27697481]
[1744567421699,0.3,131.63,131.62,16.67947481]
[1744567421911,0.3,131.63,131.62,0.53]
[1744567422196,0.3,131.64,131.62,16.67947481]
[1744567422397,0.3,131.65,131.63,16.14947481]
[1744567422600,0.363,131.66,131.64,16.14947481]
[1744567422816,0.063,131.66,131.65,16.14947481]
[1744567423005,0.063,131.66,131.62,8.1276]
[1744567423006,0.363,131.66,131.62,8.1276]
[1744567423208,0.363,131.66,131.64,16.14947481]
[1744567424198,0.063,131.66,131.65,16.14947481]
[1744567424422,0.063,131.66,131.65,23.74527481]
[1744567424723,0.363,131.66,131.65,16.14947481]
[1744567424923,0.363,131.66,131.64,16.14947481]
[1744567426824,0.3,131.65,131.64,16.14947481]
[1744567427811,0.363,131.66,131.64,16.14947481]
[1744567427999,0.3,131.65,131.64,16.14947481]
[1744567430127,7.08360591,131.68,131.64,16.14947481]
[1744567430321,23.23308072,131.68,131.63,16.14947481]
[1744567430625,7.08360591,131.68,131.64,16.14947481]
[1744567432709,16.14947481,131.66,131.61,9.84]
[1744567433022,16.14947481,131.66,131.62,3.98]
[1744567433215,16.14947481,131.64,131.62,3.98]
[1744567433419,7.597,131.63,131.62,3.98]
[1744567433806,23.74647481,131.63,131.62,3.98]
[1744567434540,23.74647481,131.63,131.56,0.063]
[1744567434541,6.53176157,131.62,131.56,0.063]
[1744567434827,16.14947481,131.58,131.57,3.98]
[1744567435325,17.74097481,131.58,131.56,0.063]
[1744567435529,23.74997481,131.57,131.56,0.063]
[1744567436326,9.1916,131.58,131.56,0.063]
[1744567436533,1.5915,131.58,131.56,0.063]
[1744567440221,25.34087481,131.58,131.56,0.063]
[1744567440421,1.5915,131.58,131.56,0.063]
[1744567440624,1.5915,131.58,131.56,16.21247481]
[1744567440828,17.74097481,131.61,131.56,16.21247481]
[1744567441325,17.74097481,131.61,131.57,16.14947481]
[1744567441326,1.5915,131.61,131.57,16.14947481]
[1744567441523,1.5915,131.61,131.58,16.14947481]
[1744567441845,7.5965,131.64,131.6,16.14947481]
[1744567442020,15.5771,131.65,131.61,16.14947481]
[1744567442219,31.72657481,131.65,131.6,16.14947481]
[1744567442419,16.14947481,131.64,131.59,16.14947481]
[1744567442625,15.5771,131.65,131.59,16.14947481]
[1744567442825,16.14947481,131.64,131.59,16.14947481]
[1744567443441,7.597,131.63,131.59,16.14947481]
[1744567444229,7.5966,131.64,131.6,16.14947481]
[1744567444734,23.74607481,131.64,131.59,16.14947481]
[1744567444931,16.14947481,131.63,131.58,16.14947481]
[1744567445131,23.74607481,131.64,131.59,16.14947481]
[1744567445738,7.9811,131.65,131.61,16.14947481]
[1744567445935,15.577,131.65,131.59,7.5991]
[1744567446247,31.72647481,131.65,131.6,16.14947481]
[1744567446444,7.9811,131.65,131.61,16.14947481]
[1744567447124,6.3896,131.68,131.64,16.14947481]
[1744567447350,1.6545,131.69,131.66,16.14947481]
[1744567447552,9.2482,131.69,131.65,16.14947481]
[1744567447923,9.2482,131.69,131.64,16.14947481]
[1744567448351,25.39767481,131.69,131.64,16.14947481]
[1744567448849,1.6545,131.69,131.65,16.14947481]
[1744567449265,9.2481,131.69,131.65,16.14947481]
[1744567449629,25.39757481,131.69,131.63,16.14947481]
[1744567450253,25.39757481,131.69,131.64,16.14947481]
[1744567450452,9.2481,131.69,131.65,16.14947481]
[1744567451653,25.39757481,131.69,131.64,16.14947481]
[1744567452953,16.14947481,131.68,131.62,16.14947481]
[1744567453249,16.14947481,131.65,131.63,0.19]
[1744567454351,6.1403,131.66,131.63,0.19]
[1744567454536,6.1403,131.66,131.63,16.14947481]
[1744567454731,6.1403,131.66,131.62,16.14947481]
[1744567454931,7.5958,131.65,131.6,7.5985]
[1744567455241,7.5958,131.65,131.62,16.14947481]
[1744567455440,7.5958,131.65,131.61,16.33947481]
[1744567456438,23.74527481,131.65,131.61,0.19]
[1744567457551,29.88527481,131.66,131.61,23.93757481]
[1744567457727,29.88527481,131.66,131.61,23.74757481]
[1744567458055,29.88527481,131.66,131.61,16.14947481]
[1744567458231,16.14947481,131.65,131.6,16.14947481]
[1744567458426,16.14947481,131.65,131.61,16.14947481]
[1744567458753,16.14947481,131.65,131.6,16.14947481]
[1744567459548,23.74587481,131.64,131.6,16.14947481]
[1744567459860,23.74587481,131.64,131.59,33.56877481]
[1744567463948,23.74587481,131.64,131.59,17.4193]
[1744567464150,23.74587481,131.64,131.59,33.56877481]
[1744567464750,23.74587481,131.64,131.59,17.4193]
[1744567464953,23.74587481,131.64,131.59,33.56877481]
[1744567465155,23.74587481,131.64,131.59,17.4193]
[1744567465341,7.5958,131.65,131.6,16.14947481]
[1744567465542,23.74527481,131.65,131.6,16.14947481]
[1744567465742,6.1403,131.66,131.6,16.14947481]
[1744567465743,29.88517481,131.66,131.6,16.14947481]
[1744567465951,29.88517481,131.66,131.61,16.14947481]
[1744567466762,29.88517481,131.66,131.6,23.74777481]
[1744567466967,16.14947481,131.65,131.6,23.74777481]
[1744567467149,16.14947481,131.65,131.6,7.5983]
[1744567467345,16.14947481,131.64,131.59,17.4192]
[1744567467663,1.518,131.63,131.59,33.56867481]
[1744567469160,9.1152,131.63,131.59,25.96947481]
[1744567470643,9.1152,131.63,131.59,33.56867481]
[1744567471159,9.1152,131.63,131.59,27.76205545]
[1744567471866,9.1152,131.63,131.59,17.94205545]
[1744567472068,19.45805545,131.63,131.58,17.94265545]
[1744567473344,19.45805545,131.63,131.58,10.34285545]
[1744567473551,10.34285545,131.62,131.57,18.00605545]
[1744567473751,10.34285545,131.61,131.57,0.063]
[1744567473948,10.34285545,131.58,131.57,0.063]
[1744567474353,11.85275545,131.58,131.57,0.063]
[1744567474942,1.5099,131.58,131.57,0.063]
[1744567475165,6.4486,131.6,131.57,0.063]
[1744567475361,6.4486,131.6,131.57,7.6633]
[1744567475666,1.5099,131.62,131.58,10.34285545]
[1744567475858,1.5099,131.62,131.6,10.34285545]
[1744567476049,6.4486,131.64,131.6,10.34285545]
[1744567477161,6.4486,131.64,131.61,7.5982]
[1744567477872,1.5099,131.66,131.62,16.15779021]
[1744567478167,1.5099,131.66,131.63,16.15779021]
[1744567478350,17.73069021,131.69,131.64,16.15779021]
[1744567478552,16.15779021,131.68,131.63,16.15779021]
[1744567479164,9.1665,131.69,131.64,7.5964]
[1744567479469,16.15779021,131.68,131.64,7.5964]
[1744567480554,16.15779021,131.68,131.63,23.75479021]
[1744567480754,16.15779021,131.68,131.64,0.19]
[1744567480950,16.15779021,131.67,131.64,0.19]
[1744567481693,16.15779021,131.68,131.64,0.19]
[1744567481987,9.1666,131.69,131.64,0.19]
[1744567482190,1.5729,131.69,131.64,0.19]
[1744567482364,17.73069021,131.69,131.64,16.34779021]
[1744567482862,1.5729,131.69,131.65,23.75359021]
[1744567483059,1.5729,131.69,131.65,23.94359021]
[1744567483262,16.15779021,131.68,131.65,0.19]
[1744567483856,16.15779021,131.68,131.64,7.5962]
[1744567484150,16.15779021,131.65,131.62,7.5972]
[1744567484461,16.15779021,131.65,131.6,7.5987]
[1744567484663,16.15779021,131.63,131.61,0.19]
[1744567484875,16.15779021,131.63,131.59,7.5991]
[1744567485176,16.15779021,131.64,131.59,23.75689021]
[1744567485468,23.75409021,131.65,131.6,16.15779021]
[1744567485677,16.15779021,131.65,131.61,1.89873706]
[1744567485973,16.15779021,131.64,131.61,1.89873706]
[1744567486372,16.15779021,131.64,131.59,23.75689021]
[1744567486672,16.15779021,131.64,131.59,7.5991]
[1744567486872,16.15779021,131.64,131.59,23.75689021]
[1744567487378,16.15779021,131.64,131.6,1.89880323]
[1744567487973,16.15779021,131.62,131.6,1.89880323]
[1744567488678,1.5754,131.63,131.59,16.15779021]
[1744567489772,16.15779021,131.62,131.58,9.78]
[1744567489957,16.15779021,131.61,131.58,9.78]
[1744567490162,16.15779021,131.6,131.57,0.063]
[1744567490783,16.15779021,131.61,131.57,0.063]
[1744567491167,16.15779021,131.6,131.57,0.063]
[1744567491878,16.15779021,131.61,131.57,0.063]
[1744567492462,23.75609021,131.61,131.57,0.063]
[1744567492777,1.5754,131.63,131.59,16.15779021]
[1744567493187,25.33019021,131.63,131.58,16.15779021]
[1744567493380,16.15779021,131.62,131.57,16.22079021]
[1744567493588,16.15779021,131.62,131.58,1.89918613]
[1744567493968,9.1724,131.63,131.58,18.05697634]
[1744567494387,9.1724,131.63,131.58,25.65627634]
[1744567494582,1.5754,131.63,131.58,23.75709021]
[1744567495288,1.5754,131.63,131.59,1.89915728]
[1744567495785,16.15779021,131.62,131.59,9.49835728]
[1744567496088,16.15779021,131.62,131.59,1.89915728]
[1744567496588,17.73319021,131.63,131.58,23.75749021]
[1744567497266,11.91944586,131.63,131.58,17.94374586]
[1744567497666,26.0,131.6,131.59,0.19]
[1744567497972,36.34404586,131.6,131.57,0.063]
[1744567498183,10.34404586,131.59,131.57,0.063]
[1744567498389,36.34404586,131.6,131.57,0.063]
[1744567498595,26.0,131.6,131.57,0.063]
[1744567498891,10.34404586,131.6,131.57,0.063]
[1744567499386,16.17022311,131.6,131.57,0.063]
[1744567499763,23.76902311,131.6,131.57,0.063]
[1744567500790,16.17022311,131.59,131.57,0.063]
[1744567501175,23.76902311,131.6,131.57,0.063]
[1744567501709,16.17022311,131.6,131.57,0.063]
[1744567502270,16.17022311,131.62,131.57,16.23322311]
[1744567502472,9.1725,131.63,131.59,16.17022311]
[1744567502682,25.34272311,131.63,131.58,16.17022311]
[1744567503475,9.1725,131.63,131.59,16.17022311]
[1744567503677,28.77,131.65,131.6,16.17022311]
[1744567503678,25.95022311,131.65,131.6,16.17022311]
[1744567503982,7.5953,131.66,131.6,16.17022311]
[1744567504191,23.76552311,131.66,131.61,16.17022311]
[1744567504374,16.17022311,131.66,131.61,16.17022311]
[1744567504696,31.32922311,131.67,131.62,16.17022311]
[1744567505570,7.564,131.67,131.62,23.76742311]
[1744567505788,1.5369,131.67,131.63,16.17022311]
[1744567506089,0.063,131.69,131.65,16.17022311]
[1744567506479,0.063,131.69,131.66,16.17022311]
[1744567507976,0.063,131.69,131.68,16.17022311]
[1744567508182,0.063,131.69,131.67,16.17022311]
[1744567509489,0.063,131.69,131.68,16.17022311]
[1744567509890,0.063,131.69,131.64,45.66363357]
[1744567510081,0.063,131.69,131.68,16.17022311]
[1744567511277,0.063,131.69,131.66,16.17022311]
[1744567511476,0.063,131.69,131.67,0.19]
[1744567512584,0.063,131.69,131.66,16.17022311]
[1744567512778,0.063,131.69,131.65,16.17022311]
[1744567513179,7.6565,131.69,131.65,16.17022311]
[1744567513389,0.063,131.69,131.65,23.76602311]
[1744567513594,0.063,131.69,131.66,16.17022311]